fUSD/lending_fUSD_20241009
["ID","MTS","AMOUNT","RATE_DAILY","PERIOD"]
[340090791,1728505846861,-685.11662691,0.00011,2]
[340090792,1728505846872,-3690.46625153,0.00011,2]
[340090793,1728505846883,-946.21399857,0.00011,2]
[340090794,1728505846894,-873.74712415,0.00011,2]
[340090795,1728505846911,-3941.1615865,0.00011,2]
[340090796,1728505846931,-6048.65000081,0.00011,2]
[340090797,1728505846946,-852.17645481,0.00011,2]
[340090798,1728505846958,-400.0,0.00011,2]
[340090799,1728505846987,-320515.47326325,0.00011,2]
[340090800,1728505846999,-2479.97084612,0.00011,2]
[340090801,1728505847010,-2686.40618774,0.00011,2]
[340090802,1728505847020,-552.86,0.00011,2]
[340090803,1728505847031,-438.217861,0.00011,2]
[340090804,1728505847041,-1415.44956061,0.00011,2]
[340090805,1728505847053,-4674.61543342,0.00011,2]
[340090806,1728505847064,-13770.93784062,0.00011,2]
[340090807,1728505847082,-20705.82098335,0.00011,2]
[340090808,1728505847093,-550.0,0.00011,2]
[340090809,1728505847104,-2133.07562019,0.00011,2]
[340090810,1728505847115,-2082.9365688,0.00011,2]
[340090811,1728505847129,-409.14193754,0.00011,2]
[340090812,1728505847141,-17689.36167256,0.00011,2]
[340090813,1728505847153,-11369.00907416,0.00011,2]
[340090814,1728505847164,-588.41097779,0.00011,2]
[340090815,1728505847174,-5807.1874379,0.00011,2]
[340090816,1728505847185,-4545.31242003,0.00011,2]
[340090817,1728505847196,-1401.42201098,0.00011,2]
[340090818,1728505847206,-36801.46384279,0.00011,2]
[340090819,1728505847216,-1210.82825412,0.00011,2]
[340090820,1728505847227,-805.58226419,0.00011,2]
[340090821,1728505847238,-43833.67529074,0.00011,2]
[340090822,1728505847252,-390.67842279,0.00011,2]
[340090823,1728505847264,-594.96858718,0.00011,2]
[340090824,1728505847275,-879.9737992,0.00011,2]
[340090825,1728505847287,-1701.5,0.00011,2]
[340090826,1728505847298,-6172.81784563,0.00011,2]
[340090827,1728505847308,-2600.0,0.00011,2]
[340090828,1728505847325,-635.84286283,0.00011,2]
[340090829,1728505847337,-676.64586236,0.00011,2]
[340090830,1728505847348,-1529.65936875,0.00011,2]
[340090831,1728505847359,-121622.46962962,0.00011,2]
[340090832,1728505847370,-648.975,0.00011,2]
[340090833,1728505847383,-793.6875,0.00011,2]
[340090834,1728505847395,-265.30539879,0.00011,2]
[340090835,1728505847406,-2420.86061955,0.00011,2]
[340090836,1728505847417,-1906.18600947,0.00011,2]
[340090837,1728505847427,-17047.25616546,0.00011,2]
[340090838,1728505847438,-2283.42218229,0.00011,2]
[340090839,1728505847449,-432.00902886,0.00011,2]
[340090840,1728505847460,-4050.58204498,0.00011,2]
[340090841,1728505847471,-8888.09487666,0.00011,2]
[340090842,1728505847482,-626.08111507,0.00011,2]
[340090843,1728505847493,-431.22961645,0.00011,2]
[340090844,1728505847504,-633.18255,0.00011,2]
[340090845,1728505865308,545.09,0.00010049,2]
[340090846,1728505870030,23900.0,0.00010029,2]
[340090847,1728505900069,200.0,9.989e-05,2]
[340090848,1728505923212,1958.28,9.984e-05,2]
[340090849,1728505933082,500.0,9.96e-05,2]
[340090850,1728505943570,200.0,9.96e-05,2]
[340090851,1728505969650,190.51,9.974e-05,2]
[340090852,1728505969887,182.1,7.979e-05,2]
[340090853,1728505991559,198.81,9.805e-05,2]
[340090854,1728506047585,700.0,8.219e-05,2]
[340090855,1728506072725,311.01,0.00010029,2]
[340090856,1728506074718,250.0,0.00010029,2]
[340090857,1728506115748,1852.42,9.936e-05,2]
[340090858,1728506123675,1343.53,9.924e-05,2]
[340090859,1728506192088,250.0,9.913e-05,2]
[340090860,1728506291755,351.26,9.936e-05,2]
[340090861,1728506362691,159.66,9.91e-05,2]
[340090862,1728506402399,150.0,9.91e-05,2]
[340090863,1728506402657,150.0,9.91e-05,2]
[340090864,1728506402869,150.0,9.91e-05,2]
[340090865,1728506403311,150.0,9.91e-05,2]
[340090866,1728506403519,150.0,9.91e-05,2]
[340090867,1728506403743,150.0,9.91e-05,2]
[340090868,1728506403987,150.0,9.91e-05,2]
[340090869,1728506404357,150.0,9.91e-05,2]
[340090870,1728506404581,150.0,9.91e-05,2]
[340090871,1728506405078,150.0,9.91e-05,2]
[340090872,1728506405285,150.0,9.91e-05,2]
[340090873,1728506405516,150.0,9.91e-05,2]
[340090874,1728506405731,150.0,9.91e-05,2]
[340090875,1728506405958,150.0,9.91e-05,2]
[340090876,1728506406203,150.0,9.91e-05,2]
[340090877,1728506406428,150.0,9.91e-05,2]
[340090878,1728506406651,150.0,9.91e-05,2]
[340090879,1728506406899,150.0,9.91e-05,2]
[340090880,1728506407167,150.0,9.91e-05,2]
[340090881,1728506407405,150.0,9.91e-05,2]
[340090882,1728506407936,150.0,9.91e-05,2]
[340090883,1728506407988,150.0,9.91e-05,2]
[340090884,1728506408032,150.0,9.91e-05,2]
[340090885,1728506408208,150.0,9.91e-05,2]
[340090886,1728506408428,150.0,9.91e-05,2]
[340090887,1728506408641,209.51990488,9.91e-05,2]
[340090888,1728506409481,452.54,9.91e-05,2]
[340090889,1728506505941,166.92,7.928e-05,2]
[340090890,1728506546411,198.81,9.912e-05,2]
[340090891,1728506579684,250.0,9.906e-05,2]
[340090892,1728506582984,191.71,9.906e-05,2]
[340090893,1728506650911,682.88,8.219e-05,2]
[340090894,1728506653189,1000.0,9.912e-05,2]
[340090906,1728507015973,166.92,7.942e-05,2]
[340090927,1728507031385,-420.1107,0.00010306,2]
[340090929,1728507031395,-300.0,0.00010449,2]
[340090931,1728507031404,-3840.6286,0.0001045,2]
[340090934,1728507031415,-490.2607,0.0001045,2]
[340090936,1728507031426,-1238.62357742,0.0001045,2]
[340090950,1728507034847,-3651.15448,0.0001045,2]
[340090951,1728507034859,-315.11720079,0.0001045,2]
[340090952,1728507034925,-464.21544179,0.0001045,2]
[340090953,1728507034935,-639.34169296,0.0001045,2]
[340090954,1728507034947,-9280.15402162,0.0001045,2]
[340090955,1728507034958,-80.50428542,0.0001045,2]
[340090957,1728507034968,-183.04,0.00010466,2]
[340090959,1728507034977,-344.89354458,0.00010472,2]
[340090962,1728507034990,-337.98645542,0.00010472,2]
[340090964,1728507034999,-150.0,0.00010698,2]
[340090966,1728507035008,-656.05059889,0.00010699,2]
[340090968,1728507035019,-700.0,0.00010699,2]
[340090970,1728507035030,-7472.38296907,0.00010699,2]
[340090973,1728507035097,-2765.6778511,0.00010699,2]
[340090984,1728507037470,-887.83016339,0.0001045,2]
[340090985,1728507037523,-2957.21415654,0.0001045,2]
[340090986,1728507037532,-9028.78584314,0.00010699,2]
[340090987,1728507037633,-1342.11458907,0.00010699,2]
[340090988,1728507037642,-6808.14579718,0.000107,2]
[340090989,1728507037654,-3046.19315,0.000107,2]
[340090990,1728507037665,-8270.36564238,0.000107,2]
[340090991,1728507037677,-6086.9008883,0.000107,2]
[340090992,1728507037688,-2659.56931745,0.000107,2]
[340090993,1728507038239,-5839.60640469,0.000107,2]
[340090994,1728507038248,-32901.8427,0.000107,2]
[340090995,1728507038258,-778.2971,0.000107,2]
[340090996,1728507038268,-150.0,0.00010766,2]
[340090997,1728507038277,-29999.99,0.00010766,2]
[340090998,1728507038288,-3500.02,0.00010766,2]
[340090999,1728507038297,-15375.63,0.00010766,2]
[340091000,1728507038307,-499.99,0.00010766,2]
[340091001,1728507038316,-6056.69,0.00010779,2]
[340091002,1728507038330,-150.0,0.00010799,2]
[340091003,1728507038339,-150.0,0.00010821,2]
[340091004,1728507038348,-150.0,0.00010834,2]
[340091005,1728507038358,-150.0,0.00010834,2]
[340091006,1728507038368,-150.0,0.00010863,2]
[340091007,1728507038377,-150.0,0.00010865,2]
[340091008,1728507038386,-150.0,0.00010868,2]
[340091009,1728507038395,-150.0,0.00010875,2]
[340091010,1728507038405,-150.0,0.00010876,2]
[340091011,1728507038414,-10214.6905,0.000109,2]
[340091012,1728507038423,-2946.7393,0.000109,2]
[340091013,1728507038432,-163.64698957,0.000109,2]
[340091014,1728507038442,-3012.72336888,0.000109,2]
[340091015,1728507038451,-343.79982692,0.000109,2]
[340091016,1728507038460,-7500.0,0.000109,2]
[340091017,1728507038470,-150.0,0.00010903,2]
[340091018,1728507038479,-500.0,0.00010912,2]
[340091019,1728507038489,-150.0,0.00010926,2]
[340091020,1728507038499,-159.163,0.0001094,2]
[340091021,1728507038508,-150.0,0.00010949,2]
[340091022,1728507038517,-184.02,0.00010959,2]
[340091023,1728507038527,-157.86,0.00010959,2]
[340091024,1728507038536,-254.51,0.00010959,2]
[340091025,1728507038546,-150.0,0.00010959,2]
[340091026,1728507038555,-3284.88,0.00010959,2]
[340091027,1728507038565,-805.53,0.00010959,2]
[340091028,1728507038580,-499.98,0.00010959,2]
[340091029,1728507038589,-161.61,0.00010959,2]
[340091030,1728507038599,-250.0,0.00010959,2]
[340091031,1728507038608,-173.32,0.00010959,2]
[340091032,1728507038617,-150.0,0.00010969,2]
[340091033,1728507038626,-222.64193873,0.00010973,2]
[340091034,1728507038636,-150.0,0.00010982,2]
[340091035,1728507038646,-150.0,0.00010992,2]
[340091036,1728507038655,-150.0,0.00010994,2]
[340091037,1728507038666,-1942.54933535,0.00010999,2]
[340091038,1728507038675,-500.0,0.00010999,2]
[340091039,1728507038685,-367.94044106,0.00010999,2]
[340091040,1728507038694,-535.97279144,0.00010999,2]
[340091041,1728507038703,-75333.67222415,0.00011,2]
[340091042,1728507038737,-546.0,0.00011,2]
[340091043,1728507038747,-6943.45106166,0.00011,2]
[340091044,1728507038760,-4318.88144001,0.00011,2]
[340091045,1728507038771,-677.06162226,0.00011,2]
[340091054,1728507039411,-35039.87520665,0.00011,2]
[340091056,1728507039422,-337.374,0.00011,2]
[340091062,1728507039467,-41032.31781522,0.00011,2]
[340091068,1728507039524,-14014.00000121,0.00011,2]
[340091069,1728507039537,-13057.7601101,0.00011,2]
[340091070,1728507039588,-4515.90098311,0.00011,2]
[340091071,1728507039598,-41417.16648546,0.00011,2]
[340091072,1728507039639,-834.30484756,0.00011,2]
[340091073,1728507039651,-1200.0,0.00011,2]
[340091074,1728507039662,-3946.99388915,0.00011,2]
[340091075,1728507039674,-420.525589,0.00011,2]
[340091076,1728507039685,-42015.368,0.00011,2]
[340091077,1728507039701,-1589.9884,0.00011,2]
[340091078,1728507039712,-1016.51739864,0.00011,2]
[340091079,1728507039724,-1224.12009011,0.00011,2]
[340091083,1728507042432,-19078.19240567,0.00011,2]
[340091084,1728507042444,-34193.4729668,0.00011,2]
[340091085,1728507042455,-3079.79298689,0.00011,2]
[340091086,1728507042467,-4133.29457926,0.00011,2]
[340091087,1728507042505,-156.3552238,0.00010999,2]
[340091088,1728507042515,-500.0,0.00010999,2]
[340091089,1728507042525,-116915.30102917,0.00011,2]
[340091090,1728507042536,-127280.0,0.00011,2]
[340091091,1728507042547,-15000.05316714,0.00011,2]
[340091092,1728507042559,-13385.37707519,0.00011,2]
[340091093,1728507042693,-500.0,0.00010999,2]
[340091094,1728507042703,-302.06340159,0.00011,2]
[340091095,1728507042714,-1963.95623651,0.00011,2]
[340091096,1728507042726,-4342.00319205,0.00011,2]
[340091097,1728507042737,-526.83208673,0.00011,2]
[340091098,1728507042748,-182194.43938961,0.00011,2]
[340091099,1728507042760,-6117.5106,0.00011,2]
[340091100,1728507042779,-500.0,0.00010999,2]
[340091101,1728507042789,-3418.7910805,0.00011,2]
[340091102,1728507042802,-520.26401847,0.00011,2]
[340091103,1728507042928,-500.0,0.00010999,2]
[340091104,1728507042938,-156.93567763,0.00010999,2]
[340091105,1728507042947,-2194.47146264,0.00011,2]
[340091122,1728507045412,-432.77116256,0.00011,2]
[340091123,1728507045468,-4553.8190213,0.00011,2]
[340091124,1728507045480,-1829.91,0.00011,2]
[340091125,1728507045578,-365.4,0.00011,2]
[340091126,1728507045594,-346.76974357,0.00011,2]
[340091127,1728507045605,-2074.30745586,0.00011,2]
[340091128,1728507045640,-36145.24384162,0.00011,2]
[340091129,1728507045652,-34253.45091569,0.00011,2]
[340091130,1728507045663,-2400.0,0.00011,2]
[340091131,1728507045674,-1520.853591,0.00011,2]
[340091132,1728507045685,-598.975,0.00011,2]
[340091133,1728507045696,-262.58501124,0.00011,2]
[340091135,1728507045707,-5800.7172,0.00011,2]
[340091136,1728507045723,-850.0,0.00011,2]
[340091137,1728507074030,3498.65522518,0.00012,10]
[340091138,1728507100094,349.2404,0.00010206,2]
[340091139,1728507100281,151.0,9.912e-05,2]
[340091140,1728507100678,237.0,9.912e-05,2]
[340091141,1728507124658,500.0,9.912e-05,2]
[340091142,1728507124992,559.0,9.912e-05,2]
[340091143,1728507159855,200.0,9.887e-05,2]
[340091144,1728507160685,150.0,0.00013,3]
[340091145,1728507165191,397.82,9.887e-05,2]
[340091146,1728507176525,2168.68,9.887e-05,2]
[340091147,1728507190632,1852.42,9.876e-05,2]
[340091148,1728507192833,716.48,8.219e-05,2]
[340091149,1728507248409,250.0,9.858e-05,2]
[340091150,1728507507582,13672.3,9.847e-05,2]
[340091151,1728507570081,397.6,9.86e-05,2]
[340091152,1728507610938,250.0,9.853e-05,2]
[340091153,1728507669017,840.0,9.869e-05,2]
[340091154,1728507716355,743.84,9.866e-05,2]
[340091155,1728507759820,850.46,8.219e-05,2]
[340091156,1728507865850,-288.0032,0.00010349,2]
[340091157,1728507865873,-1437.47936802,0.00010368,2]
[340091158,1728507865894,-300.0,0.00010449,2]
[340091159,1728507865916,-10000.0,0.0001045,2]
[340091160,1728507865939,-850.46,0.00010469,2]
[340091161,1728507865959,-2400.0,0.00010666,2]
[340091162,1728507865981,-369.78,0.00010759,2]
[340091163,1728507866003,-369.78,0.00010762,2]
[340091164,1728507866025,-369.78,0.00010765,2]
[340091165,1728507866047,-369.78,0.00010768,2]
[340091166,1728507866068,-847.8,0.00010768,2]
[340091167,1728507866088,-29999.99,0.00010768,2]
[340091168,1728507866109,-369.78,0.00010771,2]
[340091169,1728507866130,-150.99,0.00010771,2]
[340091170,1728507866150,-2491.72,0.00010771,2]
[340091171,1728507866170,-150.0,0.00010772,2]
[340091172,1728507866195,-369.78,0.00010773,2]
[340091173,1728507866215,-1178.54,0.00010773,2]
[340091174,1728507866237,-1503.86,0.00010773,2]
[340091175,1728507866257,-1320.14,0.00010773,2]
[340091176,1728507866281,-499.99,0.00010773,2]
[340091177,1728507866302,-150.99,0.00010773,2]
[340091178,1728507866324,-369.78,0.00010776,2]
[340091179,1728507866344,-1910.11,0.00010776,2]
[340091180,1728507866366,-2526.42,0.00010776,2]
[340091181,1728507866386,-299.99,0.00010776,2]
[340091182,1728507866407,-369.78,0.00010779,2]
[340091183,1728507866428,-369.78,0.00010782,2]
[340091184,1728507866456,-369.78,0.00010785,2]
[340091185,1728507866478,-369.78,0.00010787,2]
[340091186,1728507866499,-369.78,0.0001079,2]
[340091187,1728507866520,-369.78,0.00010793,2]
[340091188,1728507866541,-369.78,0.00010796,2]
[340091189,1728507866707,-369.78,0.00010799,2]
[340091190,1728507866728,-369.78,0.00010802,2]
[340091191,1728507866749,-369.78,0.00010804,2]
[340091192,1728507866771,-369.78,0.00010807,2]
[340091193,1728507866792,-369.78,0.0001081,2]
[340091194,1728507866812,-369.78,0.00010813,2]
[340091195,1728507866832,-811.0,0.00010885,2]
[340091196,1728507866854,-5879.0,0.00010885,2]
[340091197,1728507866875,-13519.0,0.00010885,2]
[340091198,1728507866896,-1149.0,0.00010885,2]
[340091199,1728507866916,-559.0,0.00010885,2]
[340091200,1728507866938,-935.0,0.00010885,2]
[340091201,1728507866959,-278.223,0.00010885,2]
[340091202,1728507866980,-208.475,0.00010885,2]
[340091203,1728507867000,-1083.0,0.00010885,2]
[340091204,1728507867021,-1907.0,0.00010885,2]
[340091205,1728507867042,-555.0,0.00010885,2]
[340091206,1728507867063,-3354.0,0.00010885,2]
[340091207,1728507867084,-1910.0,0.00010887,2]
[340091208,1728507867104,-822.174,0.00010887,2]
[340091209,1728507867125,-2937.659,0.000109,2]
[340091210,1728507867145,-950.4596,0.000109,2]
[340091211,1728507867164,-24439.92683198,0.000109,2]
[340091216,1728508186504,496.525984,0.00012,5]
[340091228,1728508231533,-328.0,0.00010335,2]
[340091229,1728508231543,-250.0,0.00010475,2]
[340091231,1728508231553,-198.8,0.0001048,2]
[340091233,1728508231562,-150.0,0.00010899,2]
[340091234,1728508231571,-5435.30249872,0.000109,2]
[340091236,1728508231592,-8008.3396693,0.000109,2]
[340091238,1728508231603,-7500.0,0.000109,2]
[340091239,1728508231612,-2556.0201,0.000109,2]
[340091241,1728508231622,-1724.4573,0.000109,2]
[340091242,1728508231631,-8056.3423,0.000109,2]
[340091243,1728508231641,-318.20314091,0.000109,2]
[340091244,1728508231651,-2194.48091457,0.000109,2]
[340091245,1728508231660,-164.66340468,0.000109,2]
[340091246,1728508231669,-619.24983098,0.000109,2]
[340091247,1728508231678,-255.05747434,0.000109,2]
[340091248,1728508231687,-167.43902082,0.000109,2]
[340091249,1728508231696,-207.61965061,0.000109,2]
[340091250,1728508231706,-500.0,0.00010912,2]
[340091251,1728508231715,-159.164,0.00010946,2]
[340091252,1728508231727,-326.2,0.00010959,2]
[340091253,1728508231736,-204.63,0.00010959,2]
[340091254,1728508231745,-250.0,0.00010959,2]
[340091255,1728508231755,-150.0,0.00010959,2]
[340091256,1728508231765,-3882.29,0.00010959,2]
[340091257,1728508231776,-866.61,0.00010959,2]
[340091258,1728508231786,-500.0,0.00010973,2]
[340091259,1728508231795,-505.06779306,0.00010973,2]
[340091260,1728508231804,-1083.0,0.0001099,2]
[340091261,1728508231814,-5879.0,0.0001099,2]
[340091262,1728508231823,-1149.0,0.0001099,2]
[340091263,1728508231832,-202.847,0.0001099,2]
[340091264,1728508231842,-230.314,0.0001099,2]
[340091265,1728508231851,-13519.0,0.0001099,2]
[340091266,1728508231861,-14028.9489885,0.00010994,2]
[340091267,1728508231870,-178239.840679,0.00010994,2]
[340091268,1728508231879,-499.99,0.00010997,2]
[340091269,1728508231888,-877.7,0.00010997,2]
[340091270,1728508231897,-500.0,0.00010999,2]
[340091271,1728508231907,-500.0,0.00010999,2]
[340091272,1728508231916,-500.0,0.00010999,2]
[340091273,1728508231929,-500.0,0.00010999,2]
[340091274,1728508231944,-500.0,0.00010999,2]
[340091275,1728508231959,-500.0,0.00010999,2]
[340091276,1728508231971,-500.0,0.00010999,2]
[340091277,1728508231989,-500.0,0.00010999,2]
[340091278,1728508232002,-500.0,0.00010999,2]
[340091279,1728508232016,-172.10025653,0.00010999,2]
[340091280,1728508232031,-500.0,0.00010999,2]
[340091281,1728508232047,-345.34210406,0.00010999,2]
[340091282,1728508232059,-500.0,0.00010999,2]
[340091283,1728508232073,-194.65621101,0.00010999,2]
[340091284,1728508232087,-324.85143848,0.00010999,2]
[340091285,1728508232101,-500.0,0.00010999,2]
[340091286,1728508232114,-800.0,0.00011,2]
[340091287,1728508232125,-250484.63333789,0.00011,2]
[340091288,1728508232141,-10557.46215609,0.00011,2]
[340091289,1728508232156,-184778.02964679,0.00011,2]
[340091290,1728508232172,-1915.18598085,0.00011,2]
[340091291,1728508232189,-2215.45501744,0.00011,2]
[340091292,1728508232207,-1161.35257624,0.00011,2]
[340091293,1728508232220,-1184.24886143,0.00011,2]
[340091294,1728508232252,-585.90545,0.00011,2]
[340091295,1728508232267,-471.96913738,0.00011,2]
[340091296,1728508234929,-372.954,0.00010894,2]
[340091305,1728508235625,-1131.0071,0.00010894,2]
[340091306,1728508235634,-226.02918517,0.00010973,2]
[340091307,1728508235645,-230.50262272,0.00010973,2]
[340091308,1728508235655,-230.22806938,0.00010999,2]
[340091309,1728508235664,-3176.0725089,0.00011,2]
[340091310,1728508235675,-5611.97964083,0.00011,2]
[340091311,1728508235686,-11157.71062883,0.00011,2]
[340091312,1728508235697,-1157.66053093,0.00011,2]
[340091313,1728508235708,-1709.87048133,0.00011,2]
[340091314,1728508235720,-654.85,0.00011,2]
[340091321,1728508237654,-720.0,0.00011,2]
[340091322,1728508237663,-11067.49999962,0.00011,2]
[340091323,1728508237673,-31633.14618011,0.00011,2]
[340091324,1728508237815,-2082763.17610142,0.00011,2]
[340091325,1728508237827,-2633250.04053125,0.00011,2]
[340091326,1728508237840,-6276751.95962249,0.00011,2]
[340091327,1728508237849,-29278.50639863,0.00011,2]
[340091328,1728508237858,-150.0,0.00011,2]
[340091329,1728508237867,-153.221,0.00011,2]
[340091330,1728508237876,-150.0,0.00011,2]
[340091331,1728508237885,-150.0,0.00011,2]
[340091332,1728508237895,-150.0,0.00011,2]
[340091333,1728508237903,-150.0,0.00011,2]
[340091334,1728508237913,-1298.0,0.00011,2]
[340091335,1728508237922,-450.984,0.00011,2]
[340091336,1728508237932,-637.909,0.00011,2]
[340091337,1728508237941,-477.0,0.00011,2]
[340091338,1728508237951,-250.0,0.00011,2]
[340091339,1728508237960,-35451.5577747,0.00011002,2]
[340091340,1728508237969,-51594.0,0.00011055,2]
[340091341,1728508237978,-743.84,0.00011099,2]
[340091342,1728508237988,-840.0,0.00011102,2]
[340091343,1728508237997,-397.82,0.00011123,2]
[340091344,1728508238006,-191.71,0.00011144,2]
[340091345,1728508238016,-44065.33,0.00011233,2]
[340091346,1728508238025,-408.38995313,0.00011276,2]
[340091347,1728508238034,-326.2,0.00011507,2]
[340091348,1728508238044,-2751.0,0.00011507,2]
[340091349,1728508238053,-328.0,0.00011627,2]
[340091350,1728508238062,-496.56066698,0.000119,2]
[340091351,1728508238071,-255.0,0.00011945,2]
[340091352,1728508238080,-10000.0,0.00012,2]
[340091353,1728508238090,-12130.53388962,0.00012,2]
[340091354,1728508238099,-2372.41593424,0.00012,2]
[340091355,1728508238108,-15832.65361725,0.00012,2]
[340091356,1728508238118,-181.79,0.00012033,2]
[340091357,1728508238127,-326.2,0.00012055,2]
[340091358,1728508238136,-180.0,0.00012055,2]
[340091359,1728508238145,-681.0,0.000121,2]
[340091360,1728508238154,-743.84,0.00012332,2]
[340091362,1728508238163,-840.0,0.00012336,2]
[340091364,1728508238172,-397.82,0.00012359,2]
[340091366,1728508238181,-191.71,0.00012382,2]
[340091368,1728508238190,-162.06,0.00012445,2]
[340091370,1728508238199,-191.7,0.00012445,2]
[340091372,1728508238209,-291.43652115,0.000125,2]
[340091374,1728508238218,-326.2,0.00012603,2]
[340091376,1728508238227,-15400.73966044,0.00012666,2]
[340091378,1728508238237,-850.46,0.00012718,2]
[340091380,1728508238246,-150.0,0.00012724,2]
[340091382,1728508238255,-150.0,0.00012724,2]
[340091384,1728508238264,-150.0,0.00012725,2]
[340091386,1728508238273,-150.0,0.00012727,2]
[340091388,1728508238282,-150.0,0.00012727,2]
[340091390,1728508238293,-150.0,0.00012734,2]
[340091392,1728508238302,-150.0,0.00012736,2]
[340091394,1728508238311,-150.0,0.00012737,2]
[340091395,1728508238320,-150.0,0.00012737,2]
[340091397,1728508238331,-217.87569858,0.00012737,2]
[340091399,1728508238341,-150.0,0.00012738,2]
[340091401,1728508238350,-150.0,0.00012738,2]
[340091403,1728508238359,-150.0,0.00012741,2]
[340091405,1728508238370,-150.0,0.00012743,2]
[340091408,1728508238379,-150.0,0.00012746,2]
[340091409,1728508238388,-150.0,0.00012749,2]
[340091412,1728508238398,-150.0,0.00012749,2]
[340091414,1728508238407,-150.0,0.00012749,2]
[340091416,1728508238417,-300.0,0.0001275,2]
[340091418,1728508238428,-150.0,0.00012754,2]
[340091420,1728508238437,-150.0,0.00012754,2]
[340091422,1728508238446,-150.0,0.00012761,2]
[340091424,1728508238456,-150.0,0.00012765,2]
[340091426,1728508238465,-150.0,0.00012766,2]
[340091428,1728508238474,-150.0,0.00012767,2]
[340091429,1728508238483,-150.0,0.00012772,2]
[340091431,1728508238492,-150.0,0.00012772,2]
[340091433,1728508238501,-150.0,0.00012778,2]
[340091435,1728508238511,-150.0,0.0001278,2]
[340091437,1728508238520,-150.0,0.00012785,2]
[340091439,1728508238529,-150.0,0.00012786,2]
[340091441,1728508238538,-150.0,0.00012789,2]
[340091444,1728508238548,-150.0,0.00012789,2]
[340091445,1728508238558,-150.0,0.00012789,2]
[340091447,1728508238567,-150.0,0.0001279,2]
[340091450,1728508238576,-150.0,0.00012795,2]
[340091452,1728508238585,-150.0,0.00012799,2]
[340091453,1728508238595,-150.0,0.00012799,2]
[340091455,1728508238604,-500.0,0.000128,2]
[340091457,1728508238613,-500.0,0.000128,2]
[340091459,1728508238623,-500.0,0.000128,2]
[340091461,1728508238633,-500.0,0.000128,2]
[340091463,1728508238642,-500.0,0.000128,2]
[340091465,1728508238651,-500.0,0.000128,2]
[340091467,1728508238660,-500.0,0.000128,2]
[340091469,1728508238670,-500.0,0.000128,2]
[340091471,1728508238679,-500.0,0.000128,2]
[340091473,1728508238688,-500.0,0.000128,2]
[340091475,1728508238698,-500.0,0.000128,2]
[340091477,1728508238707,-500.0,0.000128,2]
[340091479,1728508238716,-500.0,0.000128,2]
[340091482,1728508238726,-500.0,0.000128,2]
[340091484,1728508238736,-500.0,0.000128,2]
[340091485,1728508238746,-500.0,0.000128,2]
[340091487,1728508238755,-500.0,0.000128,2]
[340091489,1728508238764,-500.0,0.000128,2]
[340091491,1728508238774,-500.0,0.000128,2]
[340091493,1728508238783,-500.0,0.000128,2]
[340091495,1728508238792,-500.0,0.000128,2]
[340091497,1728508238802,-500.0,0.000128,2]
[340091499,1728508238811,-498.34,0.000128,2]
[340091501,1728508238820,-500.0,0.000128,2]
[340091503,1728508238830,-500.0,0.000128,2]